bitfinex/quotes_BTCUSD_20230905
["timestamp","ask_amount","ask_price","bid_price","bid_amount"]
[1693927201684,0.001,25858.0,25857.0,2.10056942]
[1693927201886,0.9892,25865.0,25857.0,1.96976942]
[1693927202038,0.9892,25865.0,25859.0,0.1358]
[1693927202260,0.84311309,25866.0,25860.0,2.34512499]
[1693927203264,1.61634109,25866.0,25860.0,2.34512499]
[1693927203516,0.001,25866.0,25860.0,2.73377026]
[1693927203718,0.001,25866.0,25862.0,0.1358]
[1693927203873,0.001,25866.0,25862.0,1.70744799]
[1693927203874,0.07252997,25866.0,25862.0,1.70744799]
[1693927204033,0.07252997,25866.0,25862.0,1.682448]
[1693927204243,0.001,25866.0,25862.0,1.682448]
[1693927204445,0.022,25866.0,25863.0,0.21237589]
[1693927204660,0.022,25866.0,25863.0,1.75898489]
[1693927204865,0.021,25866.0,25863.0,2.319914]
[1693927205110,0.9892,25869.0,25865.0,0.1358]
[1693927205447,0.013,25866.0,25863.0,0.95224219]
[1693927205604,0.06507991,25866.0,25864.0,0.3]
[1693927205804,0.06607991,25866.0,25864.0,0.3]
[1693927206025,0.06607991,25866.0,25863.0,0.17993819]
[1693927206226,0.06507991,25866.0,25863.0,0.17893819]
[1693927206378,0.06507991,25866.0,25865.0,0.002]
[1693927206589,1.546394,25867.0,25863.0,0.17893819]
[1693927206790,0.15465811,25866.0,25861.0,0.970862]
[1693927206985,2.17566527,25865.0,25863.0,0.001]
[1693927207330,0.1358,25864.0,25863.0,0.001]
[1693927207532,2.84227027,25864.0,25859.0,0.15781966]
[1693927207741,0.1358,25861.0,25856.0,0.2098]
[1693927207959,2.86152138,25860.0,25855.0,0.16406824]
[1693927208166,0.29973214,25859.0,25855.0,0.16406824]
[1693927208368,0.15465811,25858.0,25857.0,0.16772309]
[1693927208583,1.84661414,25859.0,25857.0,0.16772309]
[1693927208789,0.773372,25861.0,25854.0,0.2098]
[1693927208993,0.001,25864.0,25854.0,0.2098]
[1693927208994,0.023,25864.0,25859.0,0.1378]
[1693927209200,0.023,25864.0,25860.0,1.57175999]
[1693927209402,0.001,25864.0,25861.0,0.4358]
[1693927209610,0.001,25864.0,25861.0,1.47092873]
[1693927210063,0.06999271,25866.0,25862.0,0.38664527]
[1693927210266,0.06999271,25866.0,25862.0,1.18496626]
[1693927210445,0.07456451,25865.0,25862.0,0.02499999]
[1693927210675,1.1479,25869.0,25862.0,1.18497826]
[1693927210891,0.0735781,25868.0,25864.0,0.1358]
[1693927211098,0.0735781,25868.0,25865.0,0.02499999]
[1693927211478,0.0735781,25868.0,25864.0,2.06896727]
[1693927211681,0.07197604,25867.0,25865.0,1.17988927]
[1693927211886,0.046,25869.0,25865.0,0.40664527]
[1693927212205,1.570254,25869.0,25865.0,0.02]
[1693927212434,0.011,25868.0,25865.0,0.001]
[1693927212640,0.773185,25867.0,25865.0,0.001]
[1693927212848,0.773185,25867.0,25863.0,0.3]
[1693927213051,0.92784311,25867.0,25865.0,0.002]
[1693927213255,1.72087261,25867.0,25865.0,0.002]
[1693927213456,1.72893,25866.0,25865.0,0.002]
[1693927213683,1.54643,25866.0,25865.0,0.002]
[1693927213894,2.319645,25866.0,25865.0,0.002]
[1693927214311,2.319645,25866.0,25859.0,0.1942]
[1693927214521,0.15465811,25865.0,25859.0,0.1942]
[1693927214730,1.546567,25864.0,25859.0,0.1942]
[1693927214938,1.546567,25864.0,25855.0,0.86986027]
[1693927214939,0.15465811,25863.0,25855.0,0.03130527]
[1693927215171,2.320193,25860.0,25855.0,0.03776958]
[1693927215351,0.15465811,25859.0,25856.0,0.18512312]
[1693927215971,0.773395,25860.0,25857.0,0.07076129]
[1693927216164,0.773368,25861.0,25857.0,0.07076129]
[1693927216848,0.002,25860.0,25855.0,0.79752]
[1693927217050,0.15665811,25860.0,25855.0,1.18416527]
[1693927217257,0.06720711,25859.0,25856.0,0.32]
[1693927217861,0.06720711,25859.0,25857.0,0.007]
[1693927218207,0.06720711,25859.0,25857.0,0.016]
[1693927218411,0.06720711,25859.0,25857.0,0.009]
[1693927218586,0.06920711,25859.0,25856.0,0.024]
[1693927218790,0.10902799,25858.0,25856.0,0.024]
[1693927219054,2.7730841,25858.0,25856.0,0.048]
[1693927219203,2.80142599,25858.0,25856.0,0.024]
[1693927219553,2.456252,25857.0,25856.0,0.024]
[1693927219964,2.456252,25857.0,25850.0,0.24088925]
[1693927219965,2.84289727,25857.0,25850.0,0.24088925]
[1693927220171,1.547119,25855.0,25850.0,0.24088925]
[1693927220343,0.15465811,25854.0,25850.0,0.24088925]
[1693927220946,0.15465811,25854.0,25849.0,0.969222]
[1693927220947,0.15465811,25854.0,25851.0,0.03133812]
[1693927221145,1.547119,25855.0,25851.0,0.03133812]
[1693927221694,0.773521,25856.0,25853.0,0.06330555]
[1693927222027,0.002,25854.0,25853.0,0.06330555]
[1693927222229,0.002,25854.0,25853.0,0.08330555]
[1693927222865,0.002,25854.0,25853.0,0.02]
[1693927223068,0.002,25854.0,25852.0,0.02]
[1693927223278,0.004,25854.0,25853.0,0.019]
[1693927223484,0.004,25854.0,25853.0,0.039]
[1693927223964,0.0864591,25854.0,25853.0,0.02]
[1693927224176,0.0844591,25854.0,25852.0,0.02]
[1693927224382,0.002,25854.0,25852.0,0.044]
[1693927224941,0.06932791,25854.0,25852.0,0.024]
[1693927225421,0.07132791,25854.0,25852.0,0.048]
[1693927225622,0.06932791,25854.0,25852.0,0.024]
[1693927226143,0.3103247,25854.0,25853.0,0.019]
[1693927226344,0.3083247,25854.0,25852.0,0.024]
[1693927226523,0.07132791,25854.0,25852.0,0.048]
[1693927227553,0.07573258,25853.0,25852.0,0.048]
[1693927227796,0.07573258,25853.0,25852.0,0.024]
[1693927228003,0.84933658,25853.0,25852.0,0.024]
[1693927228715,0.002,25854.0,25852.0,0.024]
[1693927228950,0.773499,25857.0,25852.0,0.024]
[1693927228951,0.002,25853.0,25852.0,0.044]
[1693927229125,0.002,25853.0,25852.0,0.841634]
[1693927229126,0.004,25853.0,25852.0,0.841634]
[1693927229333,0.004,25853.0,25852.0,2.388902]
[1693927229573,0.002,25853.0,25852.0,3.18734727]
[1693927230386,0.002,25853.0,25852.0,3.27182727]
[1693927230587,0.002,25853.0,25852.0,3.26894727]
[1693927230817,0.002,25853.0,25852.0,3.25382727]
[1693927231023,0.002,25853.0,25852.0,3.42994203]
[1693927231230,0.002,25853.0,25852.0,2.13386276]
[1693927231450,0.002,25853.0,25852.0,0.24259476]
[1693927231655,0.004,25853.0,25852.0,0.26659476]
[1693927232631,0.004,25853.0,25852.0,0.29607039]
[1693927233240,0.004,25853.0,25852.0,0.31607039]
[1693927235843,0.004,25853.0,25852.0,2.9408229]
[1693927236044,0.004,25853.0,25852.0,3.2408229]
[1693927236222,0.004,25853.0,25852.0,3.3368229]
[1693927236584,0.004,25853.0,25852.0,3.56467213]
[1693927236795,0.004,25853.0,25852.0,3.48619213]
[1693927237199,0.004,25853.0,25852.0,3.2408229]
[1693927237602,0.004,25853.0,25852.0,3.3074829]
[1693927237875,0.004,25853.0,25852.0,3.3081429]
[1693927238079,0.004,25853.0,25852.0,3.5425029]
[1693927238287,0.004,25853.0,25852.0,4.12808825]
[1693927238492,0.004,25853.0,25852.0,5.28593943]
[1693927238707,0.004,25853.0,25852.0,5.28953943]
[1693927238910,0.004,25853.0,25852.0,5.37769443]
[1693927239130,0.004,25853.0,25852.0,5.37793443]
[1693927239334,0.004,25853.0,25852.0,5.37673443]
[1693927239540,0.004,25853.0,25852.0,5.37733443]
[1693927239747,0.004,25853.0,25852.0,5.37601443]
[1693927239925,0.004,25853.0,25852.0,5.35729443]
[1693927240101,0.004,25853.0,25852.0,5.19001443]
[1693927240300,0.004,25853.0,25852.0,5.18977443]
[1693927240653,0.004,25853.0,25852.0,5.18965443]
[1693927240827,0.004,25853.0,25852.0,5.18779443]
[1693927241153,0.004,25853.0,25852.0,4.06894325]
[1693927241328,0.004,25853.0,25852.0,4.06942325]
[1693927241760,0.004,25853.0,25852.0,4.06750325]
[1693927241970,0.004,25853.0,25852.0,4.06660325]
[1693927242146,0.004,25853.0,25852.0,4.06780325]
[1693927242377,0.004,25853.0,25852.0,5.18457907]
[1693927242584,0.0048,25862.0,25856.0,2.320506]
[1693927242789,1.546626,25863.0,25857.0,0.73164526]
[1693927243001,0.77331,25863.0,25858.0,0.96368612]
[1693927243220,0.77331,25863.0,25859.0,0.04499999]
[1693927243432,0.7727282,25863.0,25859.0,0.04499999]
[1693927243808,0.797336,25862.0,25859.0,0.04499999]
[1693927244035,0.797336,25862.0,25859.0,0.02]
[1693927244238,1.64408332,25862.0,25859.0,0.02]
[1693927244434,1.62008332,25862.0,25858.0,0.19024112]
[1693927244591,2.39341932,25862.0,25858.0,0.19024112]
[1693927244768,2.39341932,25862.0,25859.0,0.002]
[1693927244985,1.62008332,25862.0,25859.0,0.002]
[1693927246987,0.048,25862.0,25861.0,0.02949815]
[1693927247203,0.024,25862.0,25861.0,0.02949815]
[1693927247567,1.60521873,25862.0,25861.0,0.02949815]
[1693927248214,2.37855373,25862.0,25857.0,0.0437966]
[1693927248424,0.773401,25860.0,25857.0,0.0437966]
[1693927248633,1.70146011,25860.0,25857.0,0.0437966]
[1693927248840,2.47486111,25860.0,25856.0,0.3]
[1693927249050,2.47486111,25860.0,25856.0,0.3754016]
[1693927249259,2.47486111,25860.0,25854.0,1.547117]
[1693927249260,2.320203,25860.0,25858.0,0.11483454]
[1693927249837,2.344203,25860.0,25858.0,0.11483454]
[1693927250220,1.546802,25860.0,25859.0,0.12398522]
[1693927250419,1.570802,25860.0,25859.0,0.12398522]
[1693927251064,1.63068233,25860.0,25858.0,0.002]
[1693927251472,1.65468233,25860.0,25858.0,0.002]
[1693927251789,1.63068233,25860.0,25857.0,0.05473176]
[1693927251963,1.60668233,25860.0,25857.0,0.05473176]
[1693927252179,1.63068233,25860.0,25859.0,0.002]
[1693927252374,0.10788033,25860.0,25859.0,0.002]
[1693927252539,0.08388033,25860.0,25858.0,0.18523831]
[1693927252972,0.024,25860.0,25858.0,0.18523831]
[1693927253182,0.024,25860.0,25858.0,0.18323831]
[1693927253968,1.594794,25860.0,25859.0,0.002]
[1693927254765,1.570794,25860.0,25859.0,0.002]
[1693927255175,1.570794,25860.0,25858.0,0.18523831]
[1693927255425,1.594794,25860.0,25858.0,0.18723831]
[1693927255624,0.797395,25860.0,25858.0,0.18523831]
[1693927255968,0.821395,25860.0,25859.0,0.002]
[1693927256359,0.05725422,25861.0,25858.0,0.18323831]
[1693927256558,0.797399,25860.0,25858.0,0.18523831]
[1693927256763,0.821399,25860.0,25859.0,0.002]
[1693927258039,0.797399,25860.0,25859.0,0.002]
[1693927259205,0.821399,25860.0,25859.0,0.004]
[1693927260827,0.048,25860.0,25859.0,0.07793306]
[1693927261032,0.048,25860.0,25859.0,1.64478306]
[1693927261233,0.048,25860.0,25859.0,0.87135806]
[1693927261442,0.048,25860.0,25859.0,0.90086457]
[1693927261833,0.048,25860.0,25859.0,0.82693151]
[1693927262028,0.048,25860.0,25859.0,2.35360178]
[1693927262235,0.048,25860.0,25859.0,3.06042678]
[1693927262444,0.048,25860.0,25859.0,3.12732678]
[1693927262642,0.048,25860.0,25859.0,3.13038678]
[1693927262847,0.048,25860.0,25859.0,3.13092678]
[1693927263018,0.048,25860.0,25859.0,3.12720678]
[1693927263157,0.048,25860.0,25859.0,3.13002678]
[1693927263355,0.048,25860.0,25859.0,3.13044678]
[1693927263561,0.048,25860.0,25859.0,3.12732678]
[1693927263766,0.048,25860.0,25859.0,3.12750678]
[1693927264084,0.048,25860.0,25859.0,3.12876678]
[1693927264286,0.048,25860.0,25859.0,3.06042678]
[1693927264886,0.048,25860.0,25859.0,3.24865826]
[1693927265113,0.043,25860.0,25859.0,3.24865826]
[1693927265317,0.043,25860.0,25859.0,0.54173799]
[1693927265521,0.043,25860.0,25859.0,0.24173799]
[1693927267760,0.043,25860.0,25859.0,0.22173799]
[1693927268600,0.043,25860.0,25859.0,0.60838326]
[1693927268747,0.043,25860.0,25859.0,1.43732734]
[1693927268947,0.043,25860.0,25859.0,0.66390234]
[1693927269192,0.043,25860.0,25859.0,0.27725707]
[1693927270130,0.043,25860.0,25859.0,1.05068207]
[1693927270275,0.043,25860.0,25859.0,1.21357678]
[1693927270459,0.043,25860.0,25859.0,1.98700178]
[1693927270675,0.043,25860.0,25859.0,2.99690675]
[1693927271022,0.043,25860.0,25859.0,2.94850985]
[1693927271321,0.043,25860.0,25859.0,2.76042678]
[1693927271569,0.043,25860.0,25859.0,0.67294606]
[1693927271774,0.043,25860.0,25859.0,1.05972579]
[1693927271980,0.043,25860.0,25859.0,0.28630079]
[1693927273007,0.043,25860.0,25859.0,2.76042678]
[1693927276646,0.043,25860.0,25859.0,3.92200678]
[1693927276852,0.043,25860.0,25859.0,3.95489213]
[1693927277024,0.043,25860.0,25859.0,3.96749213]
[1693927277259,0.043,25860.0,25859.0,3.95765213]
[1693927277467,0.019,25860.0,25859.0,3.97833213]
[1693927277677,0.02012254,25860.0,25859.0,3.99297213]
[1693927277885,0.23158376,25867.0,25864.0,0.08]
[1693927278110,0.23158376,25867.0,25865.0,3.58462526]
[1693927278321,0.23158376,25867.0,25866.0,0.4358]
[1693927278529,0.23158376,25867.0,25866.0,3.16209027]
[1693927278763,0.0926335,25867.0,25866.0,3.22977027]
[1693927278973,0.0926335,25867.0,25866.0,3.66835027]
[1693927279175,0.0926335,25867.0,25866.0,3.66937027]
[1693927279380,0.0926335,25867.0,25866.0,3.66337027]
[1693927279679,0.0926335,25867.0,25866.0,3.39508026]
[1693927280060,0.0936335,25867.0,25866.0,3.39508026]
[1693927280405,0.0936335,25867.0,25866.0,2.48606526]
[1693927280585,0.05675915,25868.0,25866.0,2.48606526]
[1693927280790,0.05675915,25868.0,25867.0,0.02]
[1693927280943,0.05675915,25868.0,25866.0,0.58298999]
[1693927281136,0.929302,25870.0,25866.0,2.51604726]
[1693927281344,0.05536031,25869.0,25866.0,2.49104726]
[1693927281544,0.05536031,25869.0,25866.0,2.46604726]
[1693927282192,0.002,25868.0,25867.0,0.02]
[1693927282617,0.775156,25868.0,25866.0,0.325]
[1693927282818,1.548312,25868.0,25866.0,0.325]
[1693927283020,1.549312,25868.0,25867.0,0.022]
[1693927283317,1.36822439,25879.0,25867.0,0.49364526]
[1693927283538,1.36822439,25879.0,25876.0,0.1358]
[1693927283539,0.154686,25879.0,25876.0,0.1358]
[1693927283759,0.31263762,25878.0,25876.0,3.18619326]
[1693927283974,0.31263762,25878.0,25876.0,4.49135728]
[1693927284405,0.31263762,25878.0,25876.0,5.07825728]
[1693927284627,0.31263762,25878.0,25876.0,5.79688487]
[1693927284834,0.31263762,25878.0,25877.0,1.44749071]
[1693927285047,0.31263762,25878.0,25877.0,4.45279698]
[1693927285262,0.31263762,25878.0,25877.0,4.58227698]
[1693927285438,0.31263762,25878.0,25877.0,4.57855698]
[1693927285619,0.31263762,25878.0,25877.0,4.57861698]
[1693927285822,0.31263762,25878.0,25877.0,4.57855698]
[1693927286054,0.31263762,25878.0,25877.0,4.81251698]
[1693927286261,0.0199,25880.0,25879.0,0.5269]
[1693927286628,0.0199,25880.0,25879.0,5.31148819]
[1693927286857,0.0199,25880.0,25879.0,5.58748819]
[1693927287076,0.0199,25880.0,25879.0,5.37082284]
[1693927287276,0.0199,25880.0,25879.0,5.36908284]
[1693927287458,0.0199,25880.0,25879.0,5.79532035]
[1693927287686,0.0199,25880.0,25879.0,5.77208035]
[1693927287902,0.0199,25880.0,25879.0,5.72962035]
[1693927288074,0.0199,25880.0,25879.0,5.73190035]
[1693927288306,0.0199,25880.0,25879.0,5.31576284]
[1693927288433,0.0199,25880.0,25879.0,5.32950284]
[1693927288651,0.0199,25880.0,25879.0,5.32320284]
[1693927288855,0.0199,25880.0,25879.0,5.32704284]
[1693927289052,0.0199,25880.0,25879.0,3.02712627]
[1693927289232,0.0199,25881.0,25879.0,3.00712627]
[1693927289431,0.0199,25881.0,25880.0,0.68664527]
[1693927289647,0.29385879,25880.0,25879.0,0.002]
[1693927290057,0.29785879,25880.0,25879.0,0.002]
[1693927291078,0.29785879,25880.0,25879.0,0.004]
[1693927291311,0.29785879,25880.0,25879.0,0.03352831]
[1693927291674,0.08,25879.0,25873.0,0.1368509]
[1693927291869,0.1358,25877.0,25873.0,0.1368509]
[1693927292091,0.92759311,25876.0,25873.0,0.1368509]
[1693927292318,2.47344411,25876.0,25873.0,0.1368509]
[1693927292543,0.28102476,25875.0,25873.0,0.1368509]
[1693927292749,1.681752,25874.0,25873.0,0.1368509]
[1693927293153,1.00197893,25875.0,25873.0,0.1378509]
[1693927293326,0.772976,25874.0,25873.0,0.1378509]
[1693927293536,1.77494393,25875.0,25873.0,0.1378509]
[1693927293739,1.77494393,25875.0,25873.0,0.1468509]
[1693927293948,1.77494393,25875.0,25873.0,0.001]
[1693927294160,2.54790893,25875.0,25869.0,0.773102]
[1693927294497,0.92764711,25874.0,25873.0,0.002]
[1693927294700,0.92764711,25874.0,25870.0,0.02]
[1693927294701,0.772989,25874.0,25870.0,0.02]
[1693927294906,0.94564711,25874.0,25873.0,0.002]
[1693927295119,1.563978,25874.0,25873.0,0.002]
[1693927295323,1.84316724,25874.0,25873.0,0.002]
[1693927295525,1.84316724,25874.0,25873.0,0.004]
[1693927295727,1.07017824,25874.0,25873.0,0.004]
[1693927295933,0.018,25874.0,25873.0,0.004]
[1693927296139,0.024,25875.0,25873.0,0.795006]
[1693927296550,0.024,25875.0,25874.0,0.40664527]
[1693927296754,0.3431,25879.0,25874.0,2.38839727]
[1693927296755,0.27352584,25878.0,25874.0,2.38839727]
[1693927296961,0.26790295,25876.0,25874.0,3.05057326]
[1693927297162,0.26790295,25876.0,25874.0,3.02557327]
[1693927297367,0.025,25875.0,25874.0,3.02557327]
[1693927297801,0.29268893,25875.0,25874.0,2.25259727]
[1693927298006,0.772859,25878.0,25874.0,1.47962127]
[1693927298219,0.0199,25881.0,25880.0,0.08]
[1693927298426,0.0199,25884.0,25883.0,0.5869]
[1693927298608,0.0199,25884.0,25883.0,3.63666626]
[1693927298896,0.0199,25884.0,25883.0,4.20437327]
[1693927299073,0.0199,25884.0,25883.0,3.83635862]
[1693927299284,0.24720308,25884.0,25883.0,3.83635862]
[1693927299491,0.24720308,25884.0,25883.0,3.82641371]
[1693927299698,0.0199,25884.0,25883.0,3.05370671]
[1693927299905,0.0199,25884.0,25883.0,2.28099971]
[1693927300315,0.01024672,25884.0,25883.0,0.34894044]
[1693927300520,0.01024672,25884.0,25883.0,0.04894044]
[1693927300729,0.01124672,25884.0,25883.0,0.05394044]
[1693927301079,0.01024672,25884.0,25883.0,0.04894044]
[1693927301433,0.02324672,25884.0,25883.0,0.04994044]
[1693927301609,0.02324672,25884.0,25883.0,0.02994044]
[1693927301610,0.25458044,25884.0,25883.0,0.02994044]
[1693927302180,0.62858044,25884.0,25883.0,0.02994044]
[1693927302758,0.20274672,25884.0,25883.0,0.02894044]
[1693927302979,0.01124672,25884.0,25883.0,0.03394044]
[1693927303186,0.01124672,25884.0,25883.0,0.005]
[1693927303391,0.3095465,25884.0,25880.0,1.845561]
[1693927303609,0.42020483,25884.0,25881.0,0.02]
[1693927303815,3.29254958,25884.0,25883.0,0.001]
[1693927304018,3.42434958,25884.0,25883.0,0.001]
[1693927304227,0.08,25883.0,25876.0,0.772893]
[1693927304431,3.38652999,25884.0,25874.0,0.772964]
[1693927304432,0.06,25880.0,25874.0,0.772964]
[1693927304637,0.832805,25880.0,25874.0,1.545925]
[1693927304910,0.2513,25879.0,25874.0,1.545925]
[1693927305145,0.15465811,25878.0,25874.0,1.545925]
[1693927305344,0.15465811,25878.0,25874.0,0.772961]
[1693927305570,0.27262082,25877.0,25874.0,0.772961]
[1693927305950,0.27262082,25877.0,25873.0,1.546004]
[1693927306167,0.27262082,25877.0,25876.0,0.002]
[1693927306619,0.27262082,25877.0,25875.0,0.02628211]
[1693927307060,0.27362082,25877.0,25874.0,0.001]
[1693927307251,1.10650982,25877.0,25872.0,1.546044]
[1693927307537,1.26116793,25877.0,25873.0,0.035]
[1693927307688,1.76243611,25877.0,25873.0,0.015]
[1693927307906,1.606778,25877.0,25871.0,1.546101]
[1693927308282,0.45004,25885.0,25871.0,1.546101]
[1693927308283,0.0199,25886.0,25884.0,0.06]
[1693927308490,0.0199,25886.0,25877.0,0.02]
[1693927308491,0.0199,25886.0,25885.0,2.95924738]
[1693927308696,0.0199,25886.0,25885.0,4.16769538]
[1693927309194,0.0199,25886.0,25885.0,4.75970073]
[1693927309403,0.0199,25886.0,25885.0,4.93572018]
[1693927309607,0.0199,25886.0,25885.0,4.77398207]
[1693927309819,0.0199,25888.0,25885.0,4.77398207]
[1693927310047,0.0199,25888.0,25887.0,1.08934527]
[1693927310247,0.0199,25888.0,25887.0,4.47969727]
[1693927310453,0.0199,25888.0,25887.0,4.77050172]
[1693927310658,0.0199,25888.0,25887.0,4.88972172]
[1693927310859,0.0199,25888.0,25887.0,4.85498172]
[1693927311103,0.0239,25888.0,25887.0,3.89699727]
[1693927311296,0.0219,25888.0,25887.0,3.12440927]
[1693927312361,0.0199,25888.0,25887.0,3.81337462]
[1693927312590,0.0199,25888.0,25887.0,3.80701462]
[1693927312795,0.0239,25888.0,25887.0,3.85627462]
[1693927312999,0.0219,25888.0,25887.0,4.02603462]
[1693927313202,0.0219,25888.0,25887.0,3.61313462]
[1693927313354,0.0219,25888.0,25887.0,3.35140927]
[1693927313509,0.0239,25888.0,25887.0,3.37540927]
[1693927313732,0.0219,25888.0,25887.0,3.35140927]
[1693927314302,0.0239,25888.0,25887.0,3.37540927]
[1693927316081,0.0219,25888.0,25887.0,3.35140927]
[1693927316283,0.0239,25888.0,25887.0,3.37540927]
[1693927316868,0.0239,25888.0,25887.0,3.17240927]
[1693927317121,0.26474927,25888.0,25887.0,2.39982127]
[1693927317751,0.26474927,25888.0,25887.0,0.088]
[1693927317975,0.66066861,25888.0,25887.0,0.024]
[1693927318186,1.49520873,25888.0,25887.0,0.024]
[1693927318392,2.0363018,25888.0,25887.0,0.024]
[1693927318633,1.760016,25888.0,25887.0,0.024]
[1693927319050,1.758016,25888.0,25884.0,0.04]
[1693927319273,0.51630338,25887.0,25878.0,0.06]
[1693927319482,0.203,25883.0,25878.0,0.06]
[1693927319693,0.12965811,25882.0,25878.0,0.06]
[1693927319910,0.12965811,25882.0,25878.0,0.832842]
[1693927320116,0.12965811,25882.0,25878.0,0.80692955]
[1693927320799,0.386,25883.0,25879.0,0.42073282]
[1693927320999,0.386,25883.0,25882.0,0.772737]
[1693927321219,0.405,25883.0,25881.0,1.57958555]
[1693927321420,0.405,25883.0,25882.0,2.81894382]
[1693927321962,0.019,25883.0,25882.0,2.81894382]
[1693927322258,0.019,25883.0,25882.0,2.83894382]
[1693927322456,0.51089306,25886.0,25884.0,0.80674555]
[1693927322635,0.51089306,25886.0,25885.0,0.02]
[1693927322980,0.2531,25886.0,25885.0,1.67938355]
[1693927323259,0.2531,25886.0,25885.0,2.45203155]
[1693927323690,0.2531,25886.0,25885.0,1.67938355]
[1693927323934,0.2541,25886.0,25885.0,1.67938355]
[1693927324114,0.2631,25886.0,25885.0,1.97177824]
[1693927324317,0.2621,25886.0,25885.0,1.97177824]
[1693927324697,0.52098142,25886.0,25885.0,1.68038355]
[1693927324933,0.2621,25886.0,25885.0,0.001]
[1693927325399,1.034718,25886.0,25885.0,0.001]
[1693927325551,1.035718,25886.0,25885.0,0.017]
[1693927325763,1.798336,25886.0,25885.0,0.017]
[1693927325964,1.788336,25886.0,25881.0,0.03408755]
[1693927326160,1.788336,25886.0,25882.0,0.03408755]
[1693927326161,0.29549959,25884.0,25882.0,0.03408755]
[1693927326372,0.6538126,25884.0,25882.0,0.03408755]
[1693927326645,0.386,25884.0,25882.0,0.03408755]
[1693927326774,1.158694,25884.0,25881.0,0.03408755]
[1693927326981,0.65626155,25884.0,25881.0,0.03408755]
[1693927327482,0.387,25884.0,25882.0,0.016]
[1693927327687,1.15968,25884.0,25882.0,0.016]
[1693927327889,1.93336,25884.0,25882.0,0.016]
[1693927328976,1.93236,25884.0,25881.0,0.017]
[1693927329202,1.93136,25884.0,25879.0,0.03408755]
[1693927329478,1.93136,25884.0,25882.0,0.001]
[1693927329479,0.12965811,25883.0,25882.0,0.001]
[1693927329685,1.545414,25883.0,25882.0,0.001]
[1693927329900,2.90776627,25883.0,25882.0,0.001]
[1693927330113,2.90776627,25883.0,25877.0,0.07408755]
[1693927330326,0.12965811,25882.0,25879.0,0.002]
[1693927330555,1.158767,25881.0,25879.0,0.002]
[1693927330764,0.60570932,25880.0,25879.0,0.002]
[1693927330968,1.95815172,25880.0,25874.0,0.13408755]
[1693927331175,0.12965811,25879.0,25874.0,0.13408755]
[1693927331286,0.66442189,25878.0,25874.0,0.90706155]
[1693927331884,0.386,25878.0,25874.0,2.83965882]
[1693927332266,0.386,25878.0,25875.0,0.02]
[1693927332475,0.65214446,25878.0,25875.0,1.56586]
[1693927332686,0.65214446,25878.0,25875.0,1.85181668]
[1693927332887,0.45914446,25878.0,25875.0,1.85181668]
[1693927333300,0.002,25878.0,25877.0,0.03408755]
[1693927333505,0.69000751,25881.0,25878.0,0.07408755]
[1693927333706,0.24156562,25880.0,25878.0,0.07408755]
[1693927333931,0.23897873,25879.0,25878.0,0.07408755]
[1693927334229,0.62597873,25879.0,25877.0,0.02]
[1693927334436,0.001,25878.0,25877.0,0.037]
[1693927335631,0.002,25878.0,25877.0,0.044]
[1693927336034,0.002,25878.0,25877.0,0.024]
[1693927336447,0.002,25878.0,25877.0,0.04832773]
[1693927336651,1.0456052,25878.0,25877.0,0.04832773]
[1693927336856,0.775857,25878.0,25877.0,0.06532773]
[1693927337408,2.70821627,25878.0,25877.0,0.06532773]
[1693927337617,2.77254427,25878.0,25877.0,0.04832773]
[1693927337834,2.77254427,25878.0,25877.0,0.024]
[1693927338044,2.98543027,25878.0,25877.0,0.024]
[1693927338469,1.99968727,25878.0,25877.0,0.024]
[1693927338672,2.77054427,25878.0,25874.0,0.02]
[1693927338885,0.772916,25876.0,25874.0,0.02]
[1693927339088,0.772916,25876.0,25873.0,0.11408755]
[1693927339089,1.159916,25876.0,25873.0,0.02]
[1693927339252,1.159916,25876.0,25875.0,0.02435117]
[1693927339614,1.932832,25876.0,25872.0,0.1]
[1693927339823,2.06249011,25876.0,25872.0,0.1]
[1693927340066,1.932832,25876.0,25872.0,0.1]
[1693927340416,1.932832,25876.0,25869.0,0.02]
[1693927340417,0.61555772,25875.0,25869.0,0.02]
[1693927340617,2.318988,25874.0,25869.0,0.02]
[1693927340746,0.387,25872.0,25870.0,0.08]
[1693927341469,0.29068738,25871.0,25870.0,0.08]
[1693927342127,0.29068738,25871.0,25870.0,0.02]
[1693927342338,0.29068738,25871.0,25869.0,0.02]
[1693927342739,0.002,25871.0,25870.0,0.024]
[1693927343151,0.2728092,25871.0,25870.0,0.024]
[1693927343331,1.0478752,25871.0,25870.0,0.048]
[1693927343524,1.8189412,25871.0,25870.0,0.024]
[1693927343922,1.8169412,25871.0,25867.0,0.08]
[1693927344126,0.26141446,25870.0,25867.0,0.08]
[1693927344328,0.387,25869.0,25867.0,0.08]
[1693927345140,0.387,25869.0,25867.0,0.853183]
[1693927345141,0.1935,25869.0,25867.0,0.853183]
[1693927345545,0.1935,25869.0,25868.0,0.54073282]
[1693927345768,0.00591245,25874.0,25870.0,0.02]
[1693927345769,0.22893754,25874.0,25870.0,0.02]
[1693927345955,0.22893754,25874.0,25871.0,0.15465811]
[1693927346103,0.194,25873.0,25871.0,0.15465811]
[1693927346315,0.194,25873.0,25871.0,0.26080417]
[1693927347228,0.194,25873.0,25871.0,1.15386817]
[1693927348035,0.203,25873.0,25871.0,1.15486817]
[1693927348269,0.203,25873.0,25871.0,1.16895572]
[1693927348709,0.009,25873.0,25871.0,1.16895572]
[1693927348948,0.009,25873.0,25872.0,0.19569438]
[1693927349150,0.009,25873.0,25872.0,1.02281793]
[1693927349549,0.009,25873.0,25872.0,0.15408755]
[1693927349720,0.001,25873.0,25872.0,0.15408755]
[1693927350123,0.009,25873.0,25872.0,0.15508755]
[1693927350330,0.008,25873.0,25872.0,0.15508755]